fUSD/lending_fUSD_20260322
["ID","MTS","AMOUNT","RATE_DAILY","PERIOD"]
[408752909,1774195844000,-500.0,0.00013699,2]
[408752910,1774195844010,-500.0,0.00013699,2]
[408752911,1774195844020,-500.0,0.00013699,2]
[408752912,1774195844029,-500.0,0.00013699,2]
[408752913,1774195844039,-500.0,0.00013699,2]
[408752914,1774195844048,-500.0,0.00013699,2]
[408752915,1774195844059,-500.0,0.00013699,2]
[408752916,1774195844068,-160.04472507,0.00013699,2]
[408752917,1774195844078,-1552.54,0.000137,2]
[408752918,1774195844088,-1622.6,0.000137,2]
[408752919,1774195844098,-1583.78,0.000137,2]
[408752920,1774195844109,-1162.65,0.000137,2]
[408752921,1774195844120,-721.09,0.000137,2]
[408752922,1774195844130,-2598.47,0.000137,2]
[408752923,1774195844141,-155.0,0.00013763,2]
[408752924,1774195844151,-160.0,0.00013795,2]
[408752925,1774195844163,-160.0,0.00013795,2]
[408752926,1774195844173,-160.0,0.00013795,2]
[408752927,1774195844184,-979.16666667,0.00013795,2]
[408752928,1774195844193,-10749.27749058,0.00013844,2]
[408752929,1774195844205,-151.0,0.00013847,2]
[408752930,1774195844216,-151.0,0.00013847,2]
[408752931,1774195844226,-151.0,0.00013847,2]
[408752932,1774195844243,-151.0,0.00013847,2]
[408752933,1774195844253,-235.384868,0.00013874,2]
[408752934,1774195844264,-235.384868,0.00013874,2]
[408752935,1774195844274,-235.384868,0.00013874,2]
[408752936,1774195844285,-235.384868,0.00013874,2]
[408752937,1774195844295,-500.0,0.00014,2]
[408752938,1774195844307,-150.0,0.00014001,2]
[408752939,1774195844318,-150.0,0.00014001,2]
[408752940,1774195844329,-150.0,0.00014053,2]
[408752941,1774195844342,-500.0,0.0001411,2]
[408752942,1774195844352,-40336.43121456,0.00014115,2]
[408752943,1774195844363,-1152.0,0.00014246,2]
[408752944,1774195844373,-4609.0,0.00014246,2]
[408752945,1774195844385,-1000.0,0.00014247,2]
[408752946,1774195844397,-658.78645597,0.00014247,2]
[408752947,1774195844407,-1000.0,0.00014247,2]
[408752948,1774195844417,-1000.0,0.00014247,2]
[408752949,1774195844427,-1000.0,0.00014247,2]
[408752950,1774195844437,-1000.0,0.00014247,2]
[408752951,1774195844447,-1000.0,0.00014247,2]
[408752952,1774195844457,-538.91632234,0.00014247,2]
[408752953,1774195844467,-500.67270798,0.00014247,2]
[408752954,1774195844476,-1000.0,0.00014247,2]
[408752955,1774195844486,-1000.0,0.00014247,2]
[408752956,1774195844495,-803.0796662,0.00014247,2]
[408752957,1774195844507,-151.0,0.00014247,2]
[408752958,1774195844517,-151.0,0.00014247,2]
[408752959,1774195844527,-150.0,0.00014281,2]
[408752960,1774195844536,-2000.0,0.00014299,2]
[408752961,1774195844545,-2000.0,0.000143,2]
[408752962,1774195844555,-2000.0,0.000143,2]
[408752963,1774195844564,-2353.0,0.000143,2]
[408752964,1774195844573,-150.0,0.00014334,2]
[408752965,1774195844582,-1825.44,0.00014384,2]
[408752966,1774195844592,-10749.27749058,0.00014529,2]
[408752967,1774195844602,-250.0,0.00014605,2]
[408752968,1774195844614,-250.0,0.00014605,2]
[408752969,1774195844624,-250.0,0.00014605,2]
[408752970,1774195844634,-250.0,0.00014605,2]
[408752971,1774195844643,-250.0,0.00014605,2]
[408752972,1774195844653,-250.0,0.00014605,2]
[408752973,1774195844662,-250.0,0.00014605,2]
[408752974,1774195844672,-250.0,0.00014605,2]
[408752975,1774195844681,-250.0,0.00014605,2]
[408752976,1774195844691,-250.0,0.00014605,2]
[408752977,1774195844701,-250.0,0.00014605,2]
[408752978,1774195844710,-250.0,0.00014605,2]
[408752979,1774195844720,-250.0,0.00014605,2]
[408752980,1774195844731,-250.0,0.00014605,2]
[408752981,1774195844741,-150.82310716,0.00014605,2]
[408753024,1774195847530,-151.0,0.00013698,2]
[408753025,1774195847540,-99.17689284,0.00014605,2]
[408753026,1774195847550,-250.0,0.00014605,2]
[408753027,1774195847560,-250.0,0.00014605,2]
[408753028,1774195847570,-250.0,0.00014605,2]
[408753029,1774195847580,-250.0,0.00014605,2]
[408753030,1774195847590,-250.0,0.00014605,2]
[408753031,1774195847600,-250.0,0.00014605,2]
[408753032,1774195847611,-250.0,0.00014605,2]
[408753033,1774195847620,-250.0,0.00014605,2]
[408753034,1774195847630,-250.0,0.00014605,2]
[408753035,1774195847640,-250.0,0.00014605,2]
[408753036,1774195847649,-250.0,0.00014605,2]
[408753037,1774195847659,-250.0,0.00014605,2]
[408753038,1774195847669,-250.0,0.00014605,2]
[408753039,1774195847679,-250.0,0.00014605,2]
[408753040,1774195847688,-250.0,0.00014605,2]
[408753041,1774195847697,-250.0,0.00014605,2]
[408753042,1774195847706,-250.0,0.00014605,2]
[408753043,1774195847716,-250.0,0.00014605,2]
[408753044,1774195847725,-250.0,0.00014605,2]
[408753045,1774195847735,-250.0,0.00014605,2]
[408753046,1774195847744,-76.33355175,0.00014605,2]
[408753047,1774195847782,-105.69691418,0.00014605,2]
[408753048,1774195847792,-224.07660382,0.00014605,2]
[408753049,1774195847803,-354.13263926,0.00014605,2]
[408753050,1774195847813,-171.63596103,0.00014605,2]
[408753051,1774195847823,-500.0,0.00014605,2]
[408753052,1774195847833,-500.0,0.00014605,2]
[408753053,1774195847842,-500.0,0.00014605,2]
[408753054,1774195847852,-695.39793187,0.00014605,2]
[408753055,1774195847862,-9211.34798985,0.00014605,2]
[408753056,1774195847871,-151.0,0.00014605,2]
[408753057,1774195847880,-500.0,0.00014605,2]
[408753058,1774195847890,-500.0,0.00014605,2]
[408753059,1774195847899,-500.0,0.00014605,2]
[408753060,1774195847910,-500.0,0.00014605,2]
[408753061,1774195847919,-500.0,0.00014605,2]
[408753062,1774195847928,-500.0,0.00014605,2]
[408753063,1774195847938,-500.0,0.00014605,2]
[408753064,1774195847947,-500.0,0.00014605,2]
[408753065,1774195847957,-500.0,0.00014605,2]
[408753066,1774195847966,-500.0,0.00014605,2]
[408753067,1774195847976,-500.0,0.00014605,2]
[408753068,1774195847985,-500.0,0.00014605,2]
[408753069,1774195847995,-500.0,0.00014605,2]
[408753070,1774195848004,-500.0,0.00014605,2]
[408753071,1774195848014,-500.0,0.00014605,2]
[408753072,1774195848023,-151.0,0.00014605,2]
[408753073,1774195848033,-500.0,0.00014605,2]
[408753074,1774195848042,-500.0,0.00014605,2]
[408753075,1774195848052,-500.0,0.00014605,2]
[408753076,1774195848061,-500.0,0.00014605,2]
[408753077,1774195848070,-500.0,0.00014605,2]
[408753078,1774195848079,-500.0,0.00014605,2]
[408753079,1774195848089,-500.0,0.00014605,2]
[408753080,1774195848098,-500.0,0.00014605,2]
[408753081,1774195848107,-174.61919141,0.00014605,2]
[408753082,1774195848117,-500.0,0.00014605,2]
[408753083,1774195848126,-500.0,0.00014605,2]
[408753084,1774195848135,-500.0,0.00014605,2]
[408753085,1774195848146,-500.0,0.00014605,2]
[408753086,1774195848155,-500.0,0.00014605,2]
[408753087,1774195848169,-500.0,0.00014605,2]
[408753088,1774195848178,-200.0,0.00014605,2]
[408753089,1774195848188,-500.0,0.00014605,2]
[408753090,1774195848197,-500.0,0.00014605,2]
[408753091,1774195848208,-500.0,0.00014605,2]
[408753092,1774195848218,-500.0,0.00014605,2]
[408753093,1774195848228,-500.0,0.00014605,2]
[408753094,1774195848240,-151.0,0.00014605,2]
[408753095,1774195848249,-156.587,0.00014605,2]
[408753096,1774195848258,-194.25887118,0.00014605,2]
[408753097,1774195848267,-201.93286099,0.00014605,2]
[408753098,1774195848277,-668.65185757,0.00014605,2]
[408753099,1774195848286,-250.0,0.00014605,2]
[408753100,1774195848295,-262.90206542,0.00014605,2]
[408753101,1774195848305,-250.0,0.00014605,2]
[408753102,1774195848314,-250.0,0.00014605,2]
[408753103,1774195848323,-250.0,0.00014605,2]
[408753104,1774195848332,-250.0,0.00014605,2]
[408753105,1774195848342,-250.0,0.00014605,2]
[408753106,1774195848351,-250.0,0.00014605,2]
[408753107,1774195848361,-250.0,0.00014605,2]
[408753108,1774195848370,-250.0,0.00014605,2]
[408753109,1774195848379,-250.0,0.00014605,2]
[408753110,1774195848388,-250.0,0.00014605,2]
[408753111,1774195848398,-250.0,0.00014605,2]
[408753112,1774195848407,-279.9045709,0.00014605,2]
[408753113,1774195848416,-743.50770149,0.00014605,2]
[408753114,1774195848425,-500.0,0.00014605,2]
[408753115,1774195848435,-500.0,0.00014605,2]
[408753116,1774195848444,-500.0,0.00014605,2]
[408753117,1774195848454,-500.0,0.00014605,2]
[408753118,1774195848464,-500.0,0.00014605,2]
[408753119,1774195848473,-438.79,0.00014611,2]
[408753120,1774195848482,-436.52,0.00014623,2]
[408753121,1774195848491,-500.0,0.0001466,2]
[408753122,1774195848501,-9552.16786547,0.0001466,2]
[408753123,1774195848510,-151.0,0.0001466,2]
[408753124,1774195848519,-272.62944185,0.0001466,2]
[408753125,1774195848528,-500.0,0.00014685,2]
[408753126,1774195848538,-150.0,0.00014701,2]
[408753127,1774195848547,-500.0,0.00014715,2]
[408753128,1774195848556,-9905.5980765,0.00014715,2]
[408753129,1774195848566,-151.0,0.00014715,2]
[408753130,1774195848575,-282.71673119,0.00014715,2]
[408753131,1774195848585,-500.0,0.00014733,2]
[408753132,1774195848594,-151.0,0.00014751,2]
[408753133,1774195848603,-162.973007,0.00014751,2]
[408753134,1774195848613,-162.973007,0.00014751,2]
[408753135,1774195848622,-162.973007,0.00014751,2]
[408753136,1774195848631,-162.973007,0.00014751,2]
[408753137,1774195848641,-159.86,0.00014751,2]
[408753138,1774195848650,-215141.60801216,0.00014751,2]
[408753139,1774195848670,-604.0,0.00014751,2]
[408753140,1774195848705,-28209.45619814,0.00014751,2]
[408753141,1774195848716,-150.0,0.00014756,2]
[408753142,1774195848726,-500.0,0.0001477,2]
[408753143,1774195848735,-10272.10520533,0.0001477,2]
[408753144,1774195848744,-151.0,0.0001477,2]
[408753145,1774195848754,-293.17725025,0.0001477,2]
[408753146,1774195848763,-482.79604468,0.00014795,2]
[408753147,1774195848772,-1244.0069204,0.00014795,2]
[408753148,1774195848782,-1573.03260881,0.00014795,2]
[408753149,1774195848791,-1000.0,0.00014795,2]
[408753150,1774195848801,-713.64434561,0.00014795,2]
[408753151,1774195848810,-722.68518983,0.00014795,2]
[408753152,1774195848819,-500.0,0.00014825,2]
[408753153,1774195848830,-10061.99020863,0.00014825,2]
[408753154,1774195849116,-156.3131568,0.00012951,2]
[408753155,1774195849128,-590.18288929,0.00014825,2]
[408753156,1774195849140,-151.0,0.00014825,2]
[408753157,1774195849156,-304.02480851,0.00014825,2]
[408753158,1774195849176,-381.29261021,0.00014835,2]
[408753159,1774195849196,-347.52875888,0.00014835,2]
[408753160,1774195849217,-500.0,0.0001488,2]
[408753161,1774195849228,-11046.30350255,0.0001488,2]
[408753162,1774195849239,-151.0,0.0001488,2]
[408753163,1774195849248,-315.27372642,0.0001488,2]
[408753164,1774195849258,-358.49,0.000149,2]
[408753165,1774195849269,-335.73,0.000149,2]
[408753166,1774195849278,-165.5264,0.000149,2]
[408753167,1774195849288,-9025.97512022,0.000149,2]
[408753168,1774195849299,-1000.0,0.00014935,2]
[408753169,1774195849310,-1000.0,0.00014935,2]
[408753170,1774195849320,-823.896,0.00014935,2]
[408753171,1774195849329,-500.0,0.00014935,2]
[408753172,1774195849339,-11455.01673214,0.00014935,2]
[408753173,1774195849351,-151.0,0.00014935,2]
[408753174,1774195849361,-326.9388543,0.00014935,2]
[408753175,1774195849370,-1600.0,0.00014967,2]
[408753176,1774195849380,-500.0,0.0001499,2]
[408753177,1774195849390,-11878.85235123,0.0001499,2]
[408753178,1774195849401,-151.0,0.0001499,2]
[408753179,1774195849411,-339.03559191,0.0001499,2]
[408753180,1774195849421,-165.46208022,0.00015,10]
[408753181,1774195849432,-300.0,0.00015,2]
[408753182,1774195849443,-500.0,0.00015,2]
[408753183,1774195849453,-200.0,0.00015,2]
[408753184,1774195849463,-200.0,0.00015,2]
[408753185,1774195849472,-200.0,0.00015,2]
[408753186,1774195849482,-208.6,0.00015,2]
[408753187,1774195849491,-500.0,0.00015045,2]
[408753188,1774195849500,-12318.36988823,0.00015045,2]
[408753189,1774195849510,-151.0,0.00015045,2]
[408753190,1774195849520,-205.85838218,0.00015056,2]
[408753191,1774195849529,-158.0,0.00015068,2]
[408753192,1774195849538,-157.0,0.00015068,2]
[408753193,1774195849547,-529.59,0.00015068,2]
[408753194,1774195849556,-1825.44,0.00015068,2]
[408753195,1774195849565,-654.68191155,0.00015089,2]
[408753196,1774195849722,-236.26855049,0.00015089,2]
[408753197,1774195849737,-10356.54153657,0.00015089,2]
[408753198,1774195849748,-764.132,0.00015089,2]
[408753199,1774195849778,-279.026,0.00015089,2]
[408753200,1774195849789,-1384.39426419,0.00015089,2]
[408753201,1774195849799,-645.24719105,0.0001509,2]
[408753202,1774195849809,-500.0,0.000151,2]
[408753203,1774195849818,-12774.14957409,0.000151,2]
[408753204,1774195849828,-151.0,0.000151,2]
[408753205,1774195849837,-150.0,0.00015121,2]
[408753206,1774195849846,-500.0,0.00015123,2]
[408753207,1774195849862,-603.3,0.00015126,2]
[408753208,1774195849873,-151.0,0.00015153,2]
[408753209,1774195849882,-181.08010149,0.00015153,2]
[408753210,1774195849892,-200.0,0.00015153,2]
[408753211,1774195849902,-209.40437684,0.00015153,2]
[408753212,1774195849910,-693.3919763,0.00015153,2]
[408753213,1774195849920,-290.26104003,0.00015153,2]
[408753214,1774195849929,-771.01748645,0.00015153,2]
[408753215,1774195849938,-500.0,0.00015155,2]
[408753216,1774195849947,-13246.79310833,0.00015155,2]
[408753217,1774195849956,-151.0,0.00015155,2]
[408753218,1774195849966,-150.0,0.00015177,2]
[408753219,1774195849975,-163.37940241,0.00015189,2]
[408753220,1774195849984,-10000.0,0.00015205,2]
[408753221,1774195849994,-500.0,0.0001521,2]
[408753222,1774195850003,-13736.92445334,0.0001521,2]
[408753223,1774195850012,-151.0,0.0001521,2]
[408753224,1774195850021,-10749.27749058,0.00015215,2]
[408753225,1774195850031,-151.0,0.00015216,2]
[408753226,1774195850039,-151.0,0.00015216,2]
[408753227,1774195850049,-151.0,0.00015225,2]
[408753228,1774195850057,-151.0,0.00015225,2]
[408753229,1774195850067,-242.382022,0.00015225,2]
[408753230,1774195850075,-1437.311055,0.00015225,2]
[408753231,1774195850084,-1437.311055,0.00015225,2]
[408753232,1774195850093,-331.237062,0.00015225,2]
[408753233,1774195850103,-1437.311055,0.00015225,2]
[408753234,1774195850112,-331.237062,0.00015225,2]
[408753235,1774195850122,-331.237062,0.00015225,2]
[408753236,1774195850131,-1437.311055,0.00015225,2]
[408753237,1774195850140,-331.237062,0.00015225,2]
[408753238,1774195850149,-543.83,0.00015225,2]
[408753239,1774195850160,-543.83,0.00015225,2]
[408753240,1774195850170,-543.83,0.00015225,2]
[408753241,1774195850179,-543.83,0.00015225,2]
[408753242,1774195850188,-864.798792,0.00015225,2]
[408753243,1774195850198,-864.798792,0.00015225,2]
[408753244,1774195850208,-864.798792,0.00015225,2]
[408753245,1774195850216,-864.798792,0.00015225,2]
[408753246,1774195850226,-151.0,0.00015225,2]
[408753247,1774195850236,-311.05,0.0001535,2]
[408753248,1774195850246,-721.09,0.000154,2]
[408753249,1774195850255,-2598.47,0.000154,2]
[408753250,1774195850264,-500.0,0.00015467,3]
[408753251,1774195850274,-2000.0,0.000155,2]
[408753252,1774195850283,-216.42412876,0.00015616,2]
[408753253,1774195850293,-1613.0,0.00015671,2]
[408753254,1774195850303,-5660.0,0.00015671,2]
[408753255,1774195850312,-150.0,0.00015681,2]
[408753256,1774195850321,-151.0,0.00015701,2]
[408753257,1774195850331,-187.78006525,0.00015701,2]
[408753258,1774195850340,-200.0,0.00015701,2]
[408753259,1774195850350,-217.15233878,0.00015701,2]
[408753260,1774195850359,-719.04747942,0.00015701,2]
[408753261,1774195850368,-301.00069851,0.00015701,2]
[408753262,1774195850378,-799.54513345,0.00015701,2]
[408753263,1774195850387,-150.0,0.00015739,2]
[408753264,1774195850397,-1825.44,0.00015753,2]
[408753265,1774195850406,-2040.0,0.000158,2]
[408753266,1774195850415,-6575.29003023,0.00015823,2]
[408753268,1774196218853,604.92,0.0001257,10]
[408753269,1774196433934,-246.0,9.63e-05,2]
[408753270,1774196467165,3304.22,9.422e-05,2]
[408753271,1774196512621,-500.0,9.63e-05,2]
[408753272,1774196512648,-2500.0,9.632e-05,2]
[408753273,1774196512742,-425.8144077,9.651e-05,2]
[408753274,1774196512844,-4574.1855923,9.651e-05,2]
[408753275,1774196512873,-334.41294664,9.651e-05,2]
[408753276,1774196512921,-182.81292212,9.651e-05,2]
[408753277,1774196512960,-1200.0,9.671e-05,2]
[408753278,1774196512990,-250.0,9.672e-05,2]
[408753279,1774196513021,-300.0,9.689e-05,2]
[408753280,1774196513048,-517.22586874,9.691e-05,2]
[408753281,1774196513076,-300.0,9.711e-05,2]
[408753282,1774196513105,-300.0,9.711e-05,2]
[408753283,1774196513133,-807.0,9.712e-05,2]
[408753284,1774196513162,-500.0,9.713e-05,2]
[408753285,1774196513191,-500.0,9.713e-05,2]
[408753286,1774196513219,-151.55826252,9.713e-05,2]
[408753287,1774196513694,-348.44173748,9.713e-05,2]
[408753288,1774196513724,-517.22586874,9.73e-05,2]
[408753289,1774196513753,-352.109,9.73e-05,2]
[408753290,1774196513782,-1679.84478756,9.73e-05,2]
[408753291,1774196513879,-4204.76721244,9.73e-05,2]
[408753292,1774196513913,-621.66600298,9.731e-05,2]
[408753293,1774196514022,-621.66600298,9.731e-05,2]
[408753294,1774196514058,-621.66600298,9.731e-05,2]
[408753295,1774196514094,-621.66600298,9.731e-05,2]
[408753296,1774196514130,-621.66600298,9.731e-05,2]
[408753297,1774196514166,-621.66600298,9.731e-05,2]
[408753298,1774196514202,-621.66600298,9.731e-05,2]
[408753299,1774196514239,-621.66600298,9.731e-05,2]
[408753300,1774196514277,-621.66600298,9.731e-05,2]
[408753301,1774196514340,-621.66600298,9.731e-05,2]
[408753302,1774196514375,-621.66600298,9.731e-05,2]
[408753303,1774196514417,-621.66600298,9.731e-05,2]
[408753304,1774196514453,-621.66600298,9.731e-05,2]
[408753305,1774196514488,-621.66600298,9.731e-05,2]
[408753306,1774196514523,-621.66600298,9.731e-05,2]
[408753307,1774196514559,-621.66600298,9.731e-05,2]
[408753308,1774196514594,-621.66600298,9.731e-05,2]
[408753309,1774196515059,-621.66600298,9.731e-05,2]
[408753310,1774196515080,-621.66600298,9.731e-05,2]
[408753311,1774196515099,-621.66600298,9.731e-05,2]
[408753312,1774196515124,-621.66600298,9.731e-05,2]
[408753313,1774196515140,-621.66600298,9.731e-05,2]
[408753314,1774196515160,-621.66600298,9.731e-05,2]
[408753315,1774196515175,-621.66600298,9.731e-05,2]
[408753316,1774196515194,-621.66600298,9.731e-05,2]
[408753317,1774196515210,-53.35395232,9.731e-05,2]
[408753318,1774196515531,-568.31205066,9.731e-05,2]
[408753319,1774196515567,-621.66600298,9.731e-05,2]
[408753320,1774196515603,-621.66600298,9.731e-05,2]
[408753321,1774196515637,-621.66600298,9.731e-05,2]
[408753322,1774196515670,-621.66600298,9.731e-05,2]
[408753323,1774196515704,-621.66600298,9.731e-05,2]
[408753324,1774196515743,-621.66600298,9.731e-05,2]
[408753325,1774196515779,-621.66600298,9.731e-05,2]
[408753326,1774196515878,-621.66600298,9.731e-05,2]
[408753327,1774196515914,-621.66600298,9.731e-05,2]
[408753328,1774196515951,-621.66600298,9.731e-05,2]
[408753329,1774196515995,-621.66600298,9.731e-05,2]
[408753330,1774196516032,-621.66600298,9.731e-05,2]
[408753331,1774196516069,-621.66600298,9.731e-05,2]
[408753332,1774196516105,-621.66600298,9.731e-05,2]
[408753333,1774196516140,-621.66600298,9.731e-05,2]
[408753334,1774196516259,-630.09716384,9.731e-05,2]
[408753335,1774196516293,-630.09716384,9.731e-05,2]
[408753336,1774196516328,-630.09716384,9.731e-05,2]
[408753337,1774196516361,-630.09716384,9.731e-05,2]
[408753338,1774196516401,-630.09716384,9.731e-05,2]
[408753339,1774196516435,-630.09716384,9.731e-05,2]
[408753340,1774196516470,-630.09716384,9.731e-05,2]
[408753341,1774196516504,-548.5525424,9.731e-05,2]
[408753342,1774196517434,-81.54462144,9.731e-05,2]
[408753343,1774196517456,-221.84697014,9.731e-05,2]
[408753344,1774196518654,-408.2501937,9.731e-05,2]
[408753345,1774196518713,-630.09716384,9.731e-05,2]
[408753346,1774196518771,-630.09716384,9.731e-05,2]
[408753347,1774196518829,-630.09716384,9.731e-05,2]
[408753348,1774196518888,-630.09716384,9.731e-05,2]
[408753349,1774196518941,-630.09716384,9.731e-05,2]
[408753350,1774196518998,-630.09716384,9.731e-05,2]
[408753351,1774196519050,-630.09716384,9.731e-05,2]
[408753352,1774196519188,-630.09716384,9.731e-05,2]
[408753353,1774196519240,-630.09716384,9.731e-05,2]
[408753354,1774196519291,-630.09716384,9.731e-05,2]
[408753355,1774196519342,-630.09716384,9.731e-05,2]
[408753356,1774196519401,-630.09716384,9.731e-05,2]
[408753357,1774196519453,-630.09716384,9.731e-05,2]
[408753358,1774196519504,-630.09716384,9.731e-05,2]
[408753359,1774196519556,-548.5525424,9.731e-05,2]
[408753360,1774196519666,-81.54462144,9.731e-05,2]
[408753361,1774196519721,-630.09716384,9.731e-05,2]
[408753362,1774196519775,-630.09716384,9.731e-05,2]
[408753363,1774196519829,-630.09716384,9.731e-05,2]
[408753364,1774196519879,-648.18648368,9.731e-05,2]
[408753365,1774196519932,-648.18648368,9.731e-05,2]
[408753366,1774196519984,-648.18648368,9.731e-05,2]
[408753367,1774196520036,-648.18648368,9.731e-05,2]
[408753368,1774196520089,-222.65942096,9.731e-05,2]
[408753369,1774196520211,-425.52706272,9.731e-05,2]
[408753370,1774196520272,-648.18648368,9.731e-05,2]
[408753371,1774196520334,-648.18648368,9.731e-05,2]
[408753372,1774196520395,-648.18648368,9.731e-05,2]
[408753373,1774196520450,-648.18648368,9.731e-05,2]
[408753374,1774196520502,-648.18648368,9.731e-05,2]
[408753375,1774196520556,-648.18648368,9.731e-05,2]
[408753376,1774196520607,-648.18648368,9.731e-05,2]
[408753377,1774196523702,-257.213159,9.731e-05,2]
[408753378,1774196523717,-390.97332468,9.731e-05,2]
[408753379,1774196523727,-257.213159,9.731e-05,2]
[408753380,1774196523744,-74.34510304,9.731e-05,2]
[408753381,1774196524155,-316.62822164,9.731e-05,2]
[408753382,1774196524233,-648.18648368,9.731e-05,2]
[408753383,1774196524269,-648.18648368,9.731e-05,2]
[408753384,1774196524305,-648.18648368,9.731e-05,2]
[408753385,1774196524342,-648.18648368,9.731e-05,2]
[408753386,1774196524381,-648.18648368,9.731e-05,2]
[408753387,1774196524416,-1148.18648377,9.731e-05,2]
[408753388,1774196526503,153.0,9.731e-05,3]
[408753389,1774196530966,158.0,9.731e-05,3]
[408753390,1774196572651,500.0,9.53e-05,2]
[408753391,1774196585308,153.0,9.53e-05,3]
[408753392,1774196589276,158.0,9.53e-05,3]
[408753393,1774196647060,153.0,9.53e-05,3]
[408753394,1774196665356,158.0,9.53e-05,3]
[408753395,1774196706312,156.0,9.53e-05,3]
[408753396,1774196707786,153.0,9.53e-05,3]
[408753397,1774196736506,182.0,9.53e-05,2]
[408753398,1774196766635,153.0,9.53e-05,3]
[408753399,1774196831612,177.0,9.53e-05,3]
[408753400,1774196885810,158.0,9.53e-05,3]
[408753401,1774196936570,9665.01,9.5e-05,3]
[408753402,1774196936599,10000.01,9.5e-05,3]
[408753403,1774196936628,10000.01,9.5e-05,3]
[408753404,1774196936654,10000.01,9.5e-05,3]
[408753405,1774196936684,10000.01,9.5e-05,3]
[408753406,1774196947417,-7923.01,9.5e-05,3]
[408753407,1774196951820,-10000.01,9.5e-05,3]
[408753408,1774196951847,-10000.01,9.5e-05,3]
[408753409,1774196954699,-10000.01,9.5e-05,3]
[408753410,1774196954819,-10000.01,9.5e-05,3]
[408753412,1774197007393,-300.0,9.499e-05,2]
[408753413,1774197007421,-300.0,9.499e-05,2]
[408753414,1774197007450,-150.0,9.499e-05,2]
[408753415,1774197007477,-1200.0,9.499e-05,2]
[408753416,1774197007509,-300.0,9.499e-05,2]
[408753417,1774197008872,233.49,9.436e-05,2]
[408753418,1774197018846,299.89,9.699e-05,14]
[408753431,1774197032111,-2622.89306983,9.5e-05,3]
[408753432,1774197032122,-7393.85317137,9.5e-05,3]
[408753433,1774197032134,-2345.09447237,9.5e-05,3]
[408753434,1774197032167,-1421.96416629,9.5e-05,3]
[408753435,1774197032179,-2746.567596,9.5e-05,3]
[408753436,1774197032191,-3477.90574294,9.5e-05,3]
[408753437,1774197032202,-6127.228,9.5e-05,3]
[408753438,1774197032213,-2815.94946393,9.5e-05,3]
[408753439,1774197032224,-601.2627983,9.5e-05,3]
[408753440,1774197032243,-53568.2270829,9.5e-05,3]
[408753441,1774197032254,-30452.7236905,9.5e-05,3]
[408753442,1774197032267,-687.0,9.5e-05,3]
[408753444,1774197032284,-1109.24731293,9.5e-05,3]
[408753446,1774197032295,-8045.54526625,9.5e-05,3]
[408753510,1774197038105,-838.73048206,9.5e-05,3]
[408753511,1774197038117,-9561.50740717,9.5e-05,3]
[408753514,1774197038166,-339.88265974,9.5e-05,3]
[408753516,1774197038178,-690.62,9.5e-05,3]
[408753517,1774197038340,-10992.82070727,9.5e-05,3]
[408753518,1774197038352,-6275.55825757,9.5e-05,3]
[408753551,1774197040449,-106335.24878439,9.5e-05,3]
[408753552,1774197040458,-200.0,9.5e-05,2]
[408753553,1774197040467,-245.0,9.5e-05,2]
[408753554,1774197040476,-154.0,9.5e-05,3]
[408753555,1774197040485,-156.0,9.5e-05,3]
[408753556,1774197040494,-158.0,9.5e-05,3]
[408753557,1774197040503,-2429.8807,9.532e-05,2]
[408753558,1774197040513,-2500.0,9.632e-05,2]
[408753559,1774197040523,-1500000.0,9.632e-05,2]
[408753560,1774197040532,-1200.0,9.712e-05,2]
[408753561,1774197040541,-500.0,9.713e-05,2]
[408753562,1774197040551,-500.0,9.713e-05,2]
[408753563,1774197040559,-500.0,9.713e-05,2]
[408753564,1774197040568,-400.80810781,9.713e-05,2]